Cogmind - Beta 13 @@@ ROGUE MODE // 2024.04.12 @ 21:45:35 Player: GwenMeow Result: Self-destructed Performance ------------- Evolutions (1) 500 Regions Visited (2) 400 Robots Destroyed (52) 260 Value Destroyed (1313) 1313 Prototype IDs (0) 0 Alien Tech Used (0) 0 Bonus (16) 16 TOTAL SCORE: 2489 Bonus ------- High Alert Combat Kills 16 Cogmind --------- Core Integrity 239/400 Matter 192/300 Energy 250/250 System Corruption 0% Temperature Cool (0) Movement Walking (120) Location -9/Materials Parts ------- > --- POWER (1) -------- Ion Engine > --- PROPULSION (3) --- Aluminum Leg Aluminum Leg Aluminum Leg > --- UTILITY (3) ------ Improved Heat Sink Medium Storage Unit Targeting Computer > --- WEAPON (2) ------- Spread Laser Improved Light Cannon > --- INVENTORY (10) --- Targeting Computer Grenade Launcher Mini Grenade Launcher Peak State ------------ > --- POWER ------------ Ion Engine > --- PROPULSION ------- Aluminum Leg Aluminum Leg Improved Aluminum Leg > --- UTILITY ---------- Improved Heat Sink Medium Storage Unit Signal Interpreter > --- WEAPON ----------- Spread Laser Spread Laser > --- INVENTORY -------- Ion Engine Aluminum Leg Small Storage Unit Targeting Computer Targeting Computer Spread Laser Spread Laser Grenade Launcher [Rating: 15] Favorites ----------- Power Ion Engine Engine Ion Engine Power Core Light Nuclear Core Propulsion Aluminum Leg Leg Aluminum Leg Utility Small Storage Unit Device Improved Heat Sink Storage Small Storage Unit Processor Signal Interpreter Weapon Spread Laser Energy Gun Spread Laser Ballistic Gun Light Assault Rifle Ballistic Cannon Improved Light Cannon Build | -11 -10 -9 ------- Run | Yrd Mat Mat Slots Evolved 2 | . . 2 Power . | . . . Propulsion 1 | . . 1 Utility 1 | . . 1 Weapon . | . . . Parts Attached 46 | 6 18 22 Power 6 | 1 3 2 Engine 5 | 1 2 2 Core 1 | . 1 . Reactor . | . . . Propulsion 23 | 2 10 11 Treads . | . . . Leg 23 | 2 10 11 Wheel . | . . . Hover . | . . . Flight . | . . . Utility 9 | 1 2 6 Device 4 | . 1 3 Storage 2 | 1 . 1 Processor 3 | . 1 2 Hackware . | . . . Protection . | . . . Artifact . | . . . Weapon 8 | 2 3 3 Energy Gun 5 | 1 2 2 Energy Cannon . | . . . Ballistic Gun 2 | 1 1 . Ballistic Cannon 1 | . . 1 Launcher . | . . . Special Weapon . | . . . Impact Weapon . | . . . Slashing Weapon . | . . . Piercing Weapon . | . . . Special Melee Weapon . | . . . Unidentified Prototypes . | . . . Parts Lost . | . . . Power . | . . . Propulsion . | . . . Utility . | . . . Weapon . | . . . Highest Loss Streak . | . . . To Critical Strikes . | . . . Average Slot Usage (%) 99 | . 98 100 Engine 11 | . 11 11 Core 1 | . 2 . Leg 29 | . 28 33 Device 6 | . 3 11 Storage 12 | . 14 11 Processor 9 | . 9 11 Energy Gun 22 | . 24 18 Ballistic Gun 2 | . 3 . Ballistic Cannon 1 | . . 3 Naked Turns . | . . . Heaviest Build 23 | 13 17 23 Greatest Support 33 | 20 20 33 Greatest Overweight (x) . | . . . Average Overweight (x) . | . . . Largest Inventory Capacity 10 | 8 8 10 Average Capacity 8 | 6 8 9 Most Carried 10 | 3 8 10 Average Carried 6 | 1 5 6 Final Capacity 10 | 8 8 10 Final Carried 8 | 1 8 3 Class Distribution -------------------- 53% | Mutant 46% | Scavenger-Mutant Dominant Class ---------------- Mutant | -10/Materials Scavenger-Mutant | -9/Materials Resources | -11 -10 -9 ----------- Run | Yrd Mat Mat Matter Collected 670 | 233 233 204 Remotely . | . . . Salvage Created 1303 | . 783 520 Parts 96 | . 52 44 Haulers Intercepted 2 | . 1 1 Recyclers Shooed . | . . . Parts Field Recycled . | . . . Retrieved Matter . | . . . Parts Self-Destructed . | . . . Prevented . | . . . Kills | -11 -10 -9 ------- Run | Yrd Mat Mat Combat Hostiles Destroyed 41 | . 22 19 Guns 35 | . 22 13 Cannons 6 | . . 6 Classes Destroyed 7 | . 6 1 Worker 3 | . 2 1 Hauler 2 | . 1 1 Operator 1 | . 1 . Watcher 5 | . 3 2 Swarmer 12 | . 6 6 Grunt 24 | . 16 8 Sentry 5 | . . 5 Best Kill Streak 6 | . 5 6 Combat Bots Only 6 | . 5 6 Max Kills in Single Turn 2 | . 2 2 Gunslinging 1 | . 1 . Exploded . | . . . Melee . | . . . Uniques/NPCs Destroyed . | . . . Combat | -11 -10 -9 -------- Run | Yrd Mat Mat Hostile Shots Fired 168 | . 69 99 Missed 46 | . 18 28 Damage Taken 1378 | . 555 823 Core 316 | . 155 161 Absorbed by Shields . | . . . Core Remaining (%) 69 | 100 38 . Volleys Fired 112 | . 59 53 Largest 2 | . 2 2 Hottest 130 | . 130 130 Shots Fired 222 | . 118 104 Gun 199 | . 118 81 Cannon 23 | . . 23 Launcher . | . . . Special . | . . . Kinetic 51 | . 28 23 Thermal 171 | . 90 81 Explosive . | . . . Electromagnetic . | . . . Robot Hit Streak 20 | . 11 20 Robot Miss Streak 10 | . 10 8 Penetration Max . | . . . Secondary Targets 5 | . 3 2 Max Gunslinging Chain 1 | . 1 1 Shots Hit Robots 176 | . 88 88 Core Hits 178 | . 87 91 Critical Kills . | . . . Critical Parts Destroyed . | . . . Critical Strikes . | . . . Melee Attacks . | . . . Impact . | . . . Slashing . | . . . Piercing . | . . . Sneak Attacks . | . . . Combat Hostiles . | . . . Follow-up Attacks . | . . . Damage Inflicted 2341 | . 1035 1306 Guns 1993 | . 1024 969 Cannons 337 | . . 337 Explosions . | . . . Melee . | . . . Ramming 11 | . 11 . Kinetic 461 | . 124 337 Thermal 1869 | . 900 969 Explosive . | . . . Electromagnetic . | . . . Impact . | . . . Slashing . | . . . Piercing . | . . . Highest Corruption . | . . . Average Corruption . | . . . Corruption Purged . | . . . Corruption Blocked . | . . . Overload Shots . | . . . Overflow Damage 4 | . . 4 Projectiles 4 | . . 4 Explosions . | . . . Melee . | . . . Knockbacks 3 | . . 3 Impact . | . . . Kinetic 2 | . . 2 Secondary 1 | . . 1 Self-Inflicted Damage . | . . . Shots . | . . . Rammed . | . . . Targets Rammed 1 | . 1 . Kicked 1 | . 1 . Crushed . | . . . Highest Temperature 300 | . 300 158 Average Temperature 74 | . 88 46 Received Heat Transfer 525 | . 216 309 Effects 1 | . 1 . Energy Bleed 1 | . 1 . Siege Activations . | . . . Robots Corrupted . | . . . Combat Hostiles . | . . . Parts Fried . | . . . Impact Corruptions . | . . . Robots Melted . | . . . Combat Hostiles . | . . . Parts Melted 1 | . 1 . Heat Transferred 2731 | . 1511 1220 Parts Sabotaged . | . . . Parts Stolen . | . . . Parts Stripped . | . . . Power Chain Reactions . | . . . Alert | -11 -10 -9 ------- Run | Yrd Mat Mat Peak Influence 427 | . 427 340 Initial 33 | . . 33 Average 167 | . 176 164 Maximum Alert Level 2 | . 2 1 Low Security (%) 57 | 100 57 53 Level 1 40 | . 39 46 Level 2 1 | . 2 . Level 3 . | . . . Level 4 . | . . . Level 5 . | . . . High Security . | . . . Max Security . | . . . Squads Dispatched 9 | . 7 2 Investigation 6 | . 4 2 Extermination . | . . . Reinforcement 3 | . 3 . Assault . | . . . Garrison . | . . . Intercept . | . . . Searches Triggered . | . . . Construction Impeded . | . . . Haulers Reinforced . | . . . Active Scanning Responses . | . . . Cargo Convoy Interrupts . | . . . Stealth | -11 -10 -9 --------- Run | Yrd Mat Mat Distress Signals 4 | . 2 2 Communications Jammed . | . . . Distress Signals . | . . . Times Spotted 57 | . 31 26 Peak Tracking Total 7 | . 7 5 Tactical Retreats 1 | . . 1 Traps | -11 -10 -9 ------- Run | Yrd Mat Mat Traps Triggered 3 | . 2 1 Indirectly . | . . . Trap Hack Attempts . | . . . Triggered . | . . . Disarmed 6 | . 6 . Reprogrammed . | . . . Reused . | . . . Traps Extracted . | . . . Installed . | . . . Triggered . | . . . Machines | -11 -10 -9 ---------- Run | Yrd Mat Mat Machines Disabled 1 | . . 1 Max in Single Turn 1 | . . 1 Machines Repaired . | . . . Machines Dismantled . | . . . Machines Sabotaged . | . . . Overloaded Fab Kills . | . . . Hacking | -11 -10 -9 --------- Run | Yrd Mat Mat Machines Accessed 12 | . 8 4 Terminals 9 | . 6 3 Fabricators . | . . . Repair Stations 1 | . 1 . Recycling Units 2 | . 1 1 Scanalyzers . | . . . Garrison Access . | . . . Total Hacks 36 | . 24 12 Successful 20 | . 13 7 Failed 16 | . 11 5 Catastrophic 2 | . . 2 Database Lockouts . | . . . Manual 15 | . 9 6 Terminals 27 | . 18 9 Fabricators . | . . . Repair Stations 3 | . 3 . Recycling Units 6 | . 3 3 Scanalyzers . | . . . Garrison Access . | . . . Terminal Hacks 14 | . 9 5 Robot Analysis 1 | . 1 . Emergency Access Points 1 | . 1 . Alert Level 4 | . 2 2 Unreport Threat 2 | . 1 1 Locate Traps 1 | . 1 . Disarm Traps 1 | . 1 . Transport Status 2 | . 1 1 Hauler Manifests 2 | . 1 1 Fabricator Hacks . | . . . Repair Station Hacks 1 | . 1 . Scan Component 1 | . 1 . Recycling Unit Hacks 5 | . 3 2 Process 1 | . 1 . Report Inventory 2 | . 1 1 Retrieve Matter 1 | . 1 . Retrieve Components 1 | . . 1 Scanalyzer . | . . . Garrison Access Hacks . | . . . Unauthorized Hacks . | . . . Terminals . | . . . Fabricators . | . . . Repair Stations . | . . . Recycling Units . | . . . Scanalyzers . | . . . Garrison Access . | . . . Data Cores Recovered . | . . . Used . | . . . Hacking Detections 11 | . 7 4 Full Trace Events 7 | . 4 3 Feedback Events . | . . . Feedback Blocked . | . . . Robot Schematics Acquired . | . . . Robots Built . | . . . Authchips . | . . . Time . | . . . Total Robot Build Rating . | . . . Part Schematics Acquired . | . . . Parts Built . | . . . Authchips . | . . . Time . | . . . Total Part Build Rating . | . . . Parts Repaired . | . . . Time . | . . . Parts Recycled . | . . . Recycled Matter 167 | . 167 . Retrieved Matter 220 | . 220 . Retrieved Components 3 | . . 3 Parts Scanalyzed . | . . . Part Schematics Acquired . | . . . Parts Damaged . | . . . Bothacking | -11 -10 -9 ------------ Run | Yrd Mat Mat Used RIF Installer . | . . . Robots Hacked . | . . . Non-combat . | . . . Combat . | . . . Robot Hacks Applied . | . . . Relay Couplers Released . | . . . Fabnet Peak Effective % . | . . . Robots Rewired . | . . . Allies Hacked . | . . . Hacks Repelled . | . . . Allies | -11 -10 -9 -------- Run | Yrd Mat Mat Total Allies . | . . . Largest Group . | . . . Highest-Rated Group . | . . . Highest-Rated Ally . | . . . Total Orders . | . . . Ally Attacks . | . . . Total Damage . | . . . Kills . | . . . Allies Corrupted . | . . . Allies Melted . | . . . Intel | -11 -10 -9 ------- Run | Yrd Mat Mat Robot Analysis Total 1 | . 1 . Derelict Logs Recovered . | . . . Drone Launches . | . . . Drone Recoveries . | . . . Exploration | -11 -10 -9 ------------- Run | Yrd Mat Mat Turns Passed 2205 | 55 1412 738 Spaces Moved 1409 | 40 980 389 Core 8 | 8 . . Treads . | . . . Legs 1401 | 32 980 389 Wheels . | . . . Hover . | . . . Flight . | . . . Fastest Speed 50 | 50 120 120 Average Speed 119 | 106 120 120 Slowest Speed 120 | 120 120 120 Overloaded Moves . | . . . Propulsion Burnouts . | . . . Robots Hopped . | . . . Cave-ins Triggered . | . . . Exploration Rate (%) 46 | 3 97 38 Regions Visited 2 Branch Regions . Pre-discovered Areas . | . . . Known Exits Taken 1 | . 1 . Unknown Exits Taken 1 | 1 . . Scrap Searched . | . . . Spaces Dug . | . . . Terrain Destroyed 1 | . . 1 Melee . | . . . Projectile 1 | . . 1 AOE . | . . . Terrain Rammed . | . . . Walls Destroyed . | . . . Machines Disabled . | . . . Actions | -11 -10 -9 --------- Run | Yrd Mat Mat Total 1711 | 52 1104 555 Wait 69 | . 11 58 Move 1407 | 39 979 389 Hop . | . . . Pick Up 45 | 7 22 16 Fast Attach . | . . . Attach 11 | 6 3 2 Detach . | . . . Swap 35 | . 15 20 Drop 31 | . 14 17 Fire 112 | . 59 53 Melee . | . . . Ram . | . . . Kick 1 | . 1 . Crush . | . . . Escape Stasis . | . . . Rewire . | . . . Trap . | . . . Miscellaneous . | . . . Route ------- -11/Scrapyard -10/Materials (discovered 5 exits: *Mat x3 / *Min x2) -9/Materials (discovered 2 exits: *Mat / *Min) History --------- Turn | Location | Event 5 | -11/Scrapyard | Discovered new exit (range 14) 56 | -11/Scrapyard | Entered Materials 206 | -10/Materials | Discovered new exit (range 7) 245 | -10/Materials | Discovered new exit (range 8) 458 | -10/Materials | Discovered new exit (range 5) 544 | -10/Materials | Identified exit to Materials 595 | -10/Materials | Discovered exit to Materials (range 15) 666 | -10/Materials | Identified exit to Mines 734 | -10/Materials | Discovered exit to Materials (range 14) 858 | -10/Materials | Build established: Mutant 1170 | -10/Materials | Core integrity fell below 50% 1468 | -10/Materials | Entered another Materials area 1468 | -9/Materials | Evolved 2 slots: Propulsion x1, Utility x1 1774 | -9/Materials | Build established: Scavenger-Mutant 1877 | -9/Materials | Discovered new exit (range 14) 1907 | -9/Materials | Identified exit to Materials 2117 | -9/Materials | Discovered new exit (range 15) 2155 | -9/Materials | Identified exit to Mines 2206 | -9/Materials | Self-destructed Last Messages --------------- 02169_ T-07 Excavator is excavating. 02170_ Destroyed Flight Unit. 02170_ S-10 Pest knocked back. 02173_ T-07 Excavator is excavating. 02174_ Electrolysis Chamber disabled. 02180_ S-10 Pest destroyed. 02183_ K-01 Serf collects debris. 02189_ S-10 Pest destroyed. 02192_ K-01 Serf collects debris. 02195_ S-10 Pest destroyed. 02195_ K-01 Serf collects debris. 02196_ M-13 Machinist repairs Lgt. Ion Engine. 02198_ Destroyed Hover Unit. 02198_ W-16 Scout knocked back. 02198_ K-01 Serf collects debris. 02200_ K-01 Serf cleans the Electrolysis Chamber. 02202_ K-01 Serf collects debris. 02204_ K-01 Serf cleans the Electrolysis Chamber. Map ----- +----------------------------------------------------+ | ????????????????????# """ #??????????????# | | ????????????????????# """ #??????????????# | | ????????????????????#[ """ #??????????????#"" | | ????????????????????# #??????????????#"T | | ????????????????????##########??????????????#"" | | ????????????????????????????????????????????# | | ????????????????????????????????????????????###### | | ???????????????????????????????????????????## | | ???????????????????????????????????????????? | | ???????????????????????????????????????????? | | ????????????????????????????????????????????? | | ????????????????????????????????????????????? | | ?????????????????????????????????????????????# # | | ?????????????????????????????????????????????# ^^# | | ?????????????????????????????????????????????# # | | ?????????????????????????????????????????????# # | | ?????????????????????????????????????????????# # | | ?????????????????????????????????????????????# # | | ?????????????????????????????????????????????# # | | ?????????????????????????????????????????????#% | | ????????????????????""?????????????????????? +!== | | ?????????????????????? ??#########??????????#]%!" | | ????????????????##+#####+## #######+#### = " | | ????????????????# % =w k [ =" | | ????????????????# > %= *% [ | | ????????????????# k @ ! =%= | | ????????????????# """ ## ## ##+#### # | | ????????????????# """ ## "!"|" ## %# ??#%= # | | ?????????????? """ k ##""!"|""## # ??#* # | | ??????????????? ==########### # + # | | ?????????????? %%#?????????# # ## # | | ??????????????# "" #?????????# # [[ ## # | | ??????????????# """ #?????????# # [[ ## # | | ??????????????# a """ %=?????????# # [[ ## # | | ??????????????# # ????????# # ## + | | ??????????????# ?? %##????????# # ## # | | ?????????????? ???? ????????? ######### # | | ????????????? ????? ????????? #???????? # | | ???????????? ??????= ????????? ????????? # | | ????????????????????= ????????? ??????????? | | ???????????????????? ????????? ??????????? | | ????????????????????## #???????????????????????? | | ?????????????????????? ????????????????????????? | | ?????????????????????????????????????????????????? | | ?????????????????????????????????????????????????? | | ?????????????????????????????????????????????????? | | ?????????????????????????????????????????????????? | | ?????????????????????????????????????????????????? | | ?????????????????????????????????????????????????? | | ?????????????????????????????????????????????????? | +----------------------------------------------------+ Best States ------------- Heat Dissipation 42 Energy Generation 14 Energy Capacity 250 Matter Stores 300 Matter Capacity 300 Sight Range 16 Terrain Scan Density 10 Evasion (%) 55 Targeting Accuracy 5 Item Schematics ----------------- None Robot Schematics ------------------ None Fabricated ------------ Nothing Alien Tech Used ----------------- None Achievements -------------- None Challenges ------------ None Game ------ Seed AuthchipLayeredLink Manual? 0 Play Time 00:25:01 Cumulative 8.6 hours Start 2024.04.11 @ 18:36:03 End 2024.04.12 @ 21:45:35 Sessions 1 Manual Loads 0 Difficulty Rogue Special Mode None Game No. 17 Rogue 17 Adventurer 0 Explorer 0 Win Type - Total 0 Types 0/0/0/0/0/0/0/0/0 Lore% 6 Gallery% 10 Achievement% 13 Wizard Run 0 Options --------- Layout 1 ASCII 0 Keyboard 0 Movement Mouse Keybinds 0 Fullscreen 1 Font 24/Smallcaps Map View 50x35 Zoom Use 0% Tactical HUD 1 Map Filters NONE Filters NONE Steam 1 RUN: 5937c7da-d294-4333-8827-397c3da55e57